[Event "XIII Figueira da Foz Open 2019"]
[Site "Figueira da Foz"]
[Date "2019.10.28"]
[Round "2.14"]
[White "Adams, Philip"]
[Black "Dias, Jose Oliveira Gaspar"]
[Result "1-0"]
[ECO "B01"]
[WhiteElo "1993"]
[BlackElo "1562"]
[Annotator "NA RC"]
[PlyCount "89"]
[EventDate "2019.10.27"]
[EventType "swiss"]
[EventCountry "POR"]
[SourceTitle "playchess.com"]
[Source "ChessBase"]
[SourceQuality "1"]
[TimeControl "40/5400+30:1800+30"]

1. e4 {[%emt 0:00:00]} d5 {[%emt 0:00:00]} 2. exd5 {[%emt 0:00:00]} Qxd5 {[%emt 0:00:24]} 3. Nc3 {[%emt 0:00:16]} Qd6 {[%emt 0:00:06]} 4. d4 {[%emt 0:00:34]} Nf6 {[%emt 0:00:08]} 5. Nf3 {[%emt 0:00:42]} g6 {[%emt 0:00:23]} (5... Bg4 6. h3 Bh5 7. g4 Bg6 8. Ne5 Nbd7 9. Bf4 Nxe5 10. Bxe5 Qb6 11. Qf3 O-O-O 12. O-O-O e6 13. Bd3 Bb4 14. Bxg6 hxg6 {½-½ (55) Caruana,F (2828)-Moranda,W (2593) chess.com INT 2019}) 6. Nb5 {[%emt 0:01:21] B01: Scandinavian Defence} Qb6 {[%emt 0:02:46]} 7. c4 {[%emt 0:01:15]} c6 {[%emt 0:01:11]} 8. Nc3 {[%emt 0:00:41]} Bg7 {[%emt 0:00:19]} 9. Be2 {[%emt 0:01:50]} O-O {[%emt 0:00:17]} 10. h3 {[%emt 0:05:44]} a5 $146 {[%emt 0:03:32]} ({Predecessor:} 10... Rd8 11. O-O Bf5 12. Re1 e5 13. c5 {1-0 (46) Alekseev,E (2691)-Gupta,A (2662) New Delhi 2012}) 11. O-O {[%emt 0:01:03]} Na6 {[%emt 0:00:58]} 12. a3 {[%emt 0:09:04]} Bf5 {[%emt 0:15:53]} 13. Nh4 {[%emt 0:07:53]} Be6 {[%emt 0:00:15]} 14. Be3 {[%emt 0:02:46]} Qc7 {[%emt 0:03:59]} 15. Rc1 {[%emt 0:04:47]} Rfd8 {[%emt 0:01:45]} 16. Qc2 {[%emt 0:06:53]} Ne8 {[%emt 0:11:48]} 17. Rfd1 {[%emt 0:03:50]} Bf6 {[%emt 0:02:47]} 18. Nf3 {[%emt 0:00:45]} Rac8 {[%emt 0:07:32]} 19. Qa4 {[%emt 0:05:53]} Bd7 {[%emt 0:07:29]} 20. Qb3 {[%emt 0:05:15]} Qb8 {[%emt 0:06:36]} 21. Bf1 {[%emt 0:09:49]} Nd6 {[%emt 0:09:17]} 22. Bf4 {[%emt 0:07:16]} Qa7 {[%emt 0:06:25]} 23. Bxd6 {[%emt 0:08:17]} exd6 {[%emt 0:00:29]} 24. Ne4 {[%emt 0:00:09]} Be7 {[%emt 0:00:20]} 25. Qe3 {[%emt 0:02:30]} Re8 {[%emt 0:02:04]} 26. Qh6 {[%emt 0:00:48]} f6 {[%emt 0:00:50] [#]} 27. Qf4 {[%emt 0:02:40]} (27. c5 $1 $18 {[%mdl 512] and White stays clearly on top.} d5 (27... dxc5 28. Bc4+) 28. Nh4) 27... Bf5 {[%emt 0:03:54]} (27... Kg7 $16) 28. Nxd6 {[%emt 0:00:37]} Qb8 {[%emt 0:00:12]} 29. c5 {[%emt 0:00:18]} Rcd8 $2 {[%emt 0:01:17]} (29... Bxd6 30. cxd6 Kg7) 30. Bc4+ {[%emt 0:01:02]} Kh8 {[%emt 0:01:55]} 31. Nf7+ {[%emt 0:00:33] Double Attack} Kg8 {[%emt 0:01:20]} 32. Nxd8+ {[%emt 0:00:58] Discovered Attack} Kg7 {[%emt 0:00:30]} 33. Qxb8 {[%emt 0:00:34]} Nxb8 {[%emt 0:00:10]} 34. Nxb7 {[%emt 0:00:35]} a4 {[%emt 0:00:43]} 35. Re1 $18 {[%emt 0:00:41]} Kf8 {[%emt 0:00:15]} 36. Re2 {[%emt 0:01:22]} Bc8 {[%emt 0:00:41]} 37. Nd6 {[%emt 0:01:05]} Rd8 {[%emt 0:01:39]} 38. Nxc8 {[%emt 0:00:22]} Rxc8 {[%emt 0:00:10]} 39. Rce1 {[%emt 0:00:19]} Rc7 {[%emt 0:00:23]} 40. h4 {[%emt 0:00:00]} Rd7 {[%emt 0:00:00]} 41. g4 {[%emt 0:03:44]} Rb7 {[%emt 0:06:23]} 42. Kg2 {[%emt 0:01:18]} h6 {[%emt 0:00:33]} 43. h5 {[%emt 0:00:35]} gxh5 {[%emt 0:00:47]} 44. Nh4 {[%emt 0:00:56]} hxg4 {[%emt 0:04:09]} 45. Rxe7 {[%emt 0:00:30]} 1-0

[Event "XIII Figueira da Foz Open 2019"]
[Site "Figueira da Foz"]
[Date "2019.10.28"]
[Round "2.15"]
[White "Junior, Aguinaldo Vera Cruz"]
[Black "Heeren, Arnoldo"]
[Result "0-1"]
[ECO "B43"]
[WhiteElo "1558"]
[BlackElo "1929"]
[Annotator "NA RC"]
[PlyCount "86"]
[EventDate "2019.10.27"]
[EventType "swiss"]
[EventCountry "POR"]
[SourceTitle "playchess.com"]
[Source "ChessBase"]
[SourceQuality "1"]
[TimeControl "40/5400+30:1800+30"]

1. e4 c5 2. Nc3 e6 3. Nf3 a6 4. d4 cxd4 5. Nxd4 d6 6. Be3 Nf6 7. Nf3 {B80: Sicilian Scheveningen: 6 g3 and 6 Be3, including English Attack} (7. f3 h5 8. Be2 Qc7 9. O-O b5 10. Qd2 Nbd7 11. b4 d5 12. exd5 Bxb4 13. Ncxb5 axb5 14. Qxb4 Nxd5 15. Qd2 Nxe3 16. Qxe3 {½-½ (39) Vidit,S (2707)-Grandelius,N (2651) Malmo 2018}) 7... Nc6 8. e5 $146 ({Predecessor:} 8. Be2 Be7 9. O-O b5 10. a3 O-O 11. Bd3 Bb7 12. Qd2 h6 13. Bxh6 Ng4 14. Be3 d5 15. exd5 Nxe3 16. fxe3 exd5 {1-0 (22) Montilla Bejarano,C (1176)-Mengot Pardo,F (1581) Benidorm 2017}) 8... dxe5 9. Qxd8+ Kxd8 10. Bg5 Be7 11. Bd3 Nd5 12. Bxe7+ Kxe7 13. Be4 Nxc3 14. Bxc6 bxc6 15. bxc3 f6 16. O-O Rd8 17. Rab1 Rd6 18. h3 a5 19. Rfe1 Ba6 20. Re4 Rad8 21. Rb2 Bb5 22. c4 Ba6 $19 23. Rb6 c5 24. Rxd6 Rxd6 25. a3 Rd1+ 26. Re1 Rxe1+ 27. Nxe1 Bxc4 28. f3 Kd6 29. Kf2 Kd5 30. Ke3 f5 31. c3 f4+ 32. Kf2 e4 33. g3 fxg3+ 34. Kxg3 exf3 35. Kxf3 Bb3 36. Ke3 Kc4 37. Kd2 Ba4 38. Nf3 Kb3 39. Ne5 Bb5 40. Nf3 Kxa3 41. Kc2 Ba4+ 42. Kd2 Kb2 43. Ne1 Bb5 0-1

[Event "XIII Figueira da Foz Open 2019"]
[Site "Figueira da Foz"]
[Date "2019.10.28"]
[Round "2.16"]
[White "Puglia, Francesco"]
[Black "Dong, Rafael"]
[Result "1-0"]
[ECO "B12"]
[WhiteElo "1916"]
[BlackElo "1486"]
[Annotator "NA RC"]
[PlyCount "61"]
[EventDate "2019.10.27"]
[EventType "swiss"]
[EventCountry "POR"]
[SourceTitle "playchess.com"]
[Source "ChessBase"]
[SourceQuality "1"]
[TimeControl "40/5400+30:1800+30"]

1. e4 {[%emt 0:00:00]} c6 {[%emt 0:00:00]} 2. d4 {[%emt 0:00:00]} d5 {[%emt 0:00:00]} 3. e5 {[%emt 0:00:00]} Bf5 {[%emt 0:00:00]} 4. h4 {[%emt 0:00:00]} h5 {[%emt 0:00:22]} 5. Bg5 {[%emt 0:00:00]} Qb6 {[%emt 0:00:46]} 6. Bd3 {[%emt 0:00:08] B12: Caro-Kann: Advance Variation} Bxd3 {[%emt 0:03:46]} 7. Qxd3 {[%emt 0:00:02]} Qxb2 {[%emt 0:04:34]} 8. e6 {[%emt 0:00:09]} fxe6 {[%emt 0:00:20]} 9. Nf3 {[%emt 0:06:50]} Qxa1 {[%emt 0:04:15]} 10. Qb3 {[%emt 0:00:30]} b5 $146 {[%emt 0:02:40]} ({Predecessor:} 10... Nd7 11. O-O O-O-O 12. Bd2 e5 {0-1 (34) Lopez Rivera,J (2337)-Granda Zuniga,J (2688) La Roda 2016}) 11. O-O {[%emt 0:01:28]} a5 {[%emt 0:04:22]} 12. Nc3 {[%emt 0:02:56]} a4 {[%emt 0:00:25]} 13. Qa3 {[%emt 0:00:59]} Qxf1+ {[%emt 0:03:39]} 14. Kxf1 {[%emt 0:00:03]} Nd7 {[%emt 0:00:19]} 15. Ne5 $2 {[%emt 0:09:32]} (15. Ne2 $18 {is the precise move to win.}) 15... Nxe5 {[%emt 0:00:31]} 16. dxe5 {[%emt 0:00:03]} g6 {[%emt 0:00:23]} 17. Qc5 {[%emt 0:03:14]} Kd7 {[%emt 0:03:00]} 18. Be3 {[%emt 0:13:52]} Bg7 {[%emt 0:02:05]} 19. Nxd5 {[%emt 0:02:23]} exd5 {[%emt 0:01:08]} 20. e6+ {[%emt 0:00:07]} Kc7 {[%emt 0:01:52]} 21. Qb6+ {[%emt 0:02:27]} Kd6 {[%emt 0:02:02]} 22. Bc5+ {[%emt 0:02:01]} Kxe6 {[%emt 0:05:21]} 23. Qxc6+ {[%emt 0:01:22]} Ke5 {[%emt 0:04:41]} 24. f4+ {[%emt 0:10:04]} Kxf4 {[%emt 0:01:54]} 25. Qe6 {[%emt 0:00:50]} Be5 {[%emt 0:04:51]} 26. Qxd5 {[%emt 0:00:28]} Bg7 {[%emt 0:02:59]} 27. Kf2 {[%emt 0:18:41] Decoy} Rf8 {[%emt 0:05:55]} 28. g3+ {[%emt 0:00:30]} Kg4+ {[%emt 0:00:19]} 29. Kg2 {[%emt 0:00:02]} Bh6 {[%emt 0:03:47]} 30. Qe6+ {[%emt 0:00:06]} Rf5 {[%emt 0:01:51]} 31. Qe2+ {[%emt 0:00:02]} 1-0

[Event "XIII Figueira da Foz Open 2019"]
[Site "Figueira da Foz"]
[Date "2019.10.28"]
[Round "2.18"]
[White "Babo, Miguel"]
[Black "Dong, Fabio"]
[Result "1/2-1/2"]
[ECO "D04"]
[WhiteElo "1827"]
[BlackElo "1410"]
[Annotator "NA RC"]
[PlyCount "72"]
[EventDate "2019.10.27"]
[EventType "swiss"]
[EventCountry "POR"]
[SourceTitle "playchess.com"]
[Source "ChessBase"]
[SourceQuality "1"]
[TimeControl "40/5400+30:1800+30"]

1. d4 {[%emt 0:00:00]} d5 {[%emt 0:00:00]} 2. Nf3 {[%emt 0:00:00]} Nf6 {[%emt 0:00:00]} 3. e3 {[%emt 0:00:00]} c6 {[%emt 0:00:00]} 4. Bd3 {[%emt 0:00:08]} Bg4 {[%emt 0:00:19]} 5. b3 {[%emt 0:01:16]} e6 {[%emt 0:03:37]} 6. O-O {[%emt 0:01:21] D04: Colle System} (6. Bb2 Bb4+ 7. c3 Bd6 8. Nbd2 Nbd7 9. c4 Qe7 10. h3 Bh5 11. O-O e5 12. e4 dxe4 13. Nxe4 Nxe4 14. Bxe4 {½-½ (49) Shengelia,D (2551)-Bartel,M (2653) Porto Carras 2011}) 6... Nbd7 {[%emt 0:03:11]} 7. Bb2 {[%emt 0:00:42]} Be7 {[%emt 0:03:55]} 8. Nbd2 {[%emt 0:00:38]} O-O {[%emt 0:00:49]} 9. Qe1 {[%emt 0:01:33]} Qc7 $146 {[%emt 0:02:08]} ({Predecessor:} 9... Bf5 10. Ne5 Bxd3 11. cxd3 Qa5 12. Qe2 Nxe5 13. dxe5 {1-0 (42) Ortega Serra,M (2356)-Fernandez Aguilar,F (2153) Santa Eulalia de Roncana 2015}) 10. Ne5 {[%emt 0:00:56]} Nxe5 {[%emt 0:04:13]} 11. dxe5 {[%emt 0:01:48]} Nd7 {[%emt 0:00:28]} 12. f3 {[%emt 0:07:43]} Bh5 {[%emt 0:04:33]} 13. f4 {[%emt 0:08:19]} Nc5 {[%emt 0:06:16]} 14. f5 {[%emt 0:08:01]} (14. h3 $11) 14... Nxd3 {[%emt 0:03:33]} 15. cxd3 {[%emt 0:01:18]} exf5 {[%emt 0:01:46]} 16. d4 {[%emt 0:12:08]} Bg6 {[%emt 0:03:00]} 17. Qe2 {[%emt 0:11:04]} Rfe8 {[%emt 0:14:05]} 18. Rac1 {[%emt 0:03:32]} a5 {[%emt 0:00:44]} 19. a3 {[%emt 0:06:26]} b5 {[%emt 0:05:33]} (19... f6 $17 20. Qf2 Qb6) 20. Qxb5 {[%emt 0:01:09]} cxb5 {[%emt 0:03:17]} 21. Rxc7 {[%emt 0:00:12]} b4 {[%emt 0:05:06]} 22. a4 {[%emt 0:00:31]} ({White should try} 22. axb4 $11 Bg5 23. Re1) 22... Bg5 {[%emt 0:01:44]} 23. Re1 {[%emt 0:03:32] [#]} (23. Kf2 $1 $15) 23... Rec8 $1 {[%emt 0:02:37]} 24. Rc5 {[%emt 0:00:21] [#]} Rxc5 {[%emt 0:02:42]} (24... f4 $1 $17 25. Nf3 Be7 26. Rxc8+ Rxc8 27. exf4 Rc2) 25. dxc5 {[%emt 0:00:04]} Rc8 {[%emt 0:00:47]} 26. Bd4 {[%emt 0:00:31]} f4 {[%emt 0:01:08]} 27. Nf3 {[%emt 0:04:54]} Bh6 {[%emt 0:00:53]} 28. exf4 {[%emt 0:03:52]} Bxf4 {[%emt 0:00:12]} 29. g3 {[%emt 0:00:50]} Bh6 {[%emt 0:00:44]} 30. Re2 {[%emt 0:06:27]} Bd3 {[%emt 0:02:36]} 31. Rf2 {[%emt 0:00:42]} Be4 {[%emt 0:04:21]} ({Better is} 31... g6 $17 32. g4 Bf8) 32. h4 {[%emt 0:04:52]} g6 {[%emt 0:06:48]} 33. Nh2 {[%emt 0:02:16]} (33. Ng5 $11 {keeps the balance.}) 33... Bf8 {[%emt 0:02:53]} 34. Ng4 {[%emt 0:00:10]} Bxc5 $19 {[%emt 0:00:49]} 35. Nf6+ {[%emt 0:05:12]} Kg7 {[%emt 0:01:38]} 36. Ne8+ Rxe8 1/2-1/2

[Event "XIII Figueira da Foz Open 2019"]
[Site "Figueira da Foz"]
[Date "2019.10.29"]
[Round "3.16"]
[White "Tadevosyan, Aspet"]
[Black "Marcal, Armando Paulo Gomes"]
[Result "1-0"]
[ECO "B10"]
[WhiteElo "1998"]
[BlackElo "1706"]
[Annotator "NA RC"]
[PlyCount "53"]
[EventDate "2019.10.27"]
[EventType "swiss"]
[EventCountry "POR"]
[SourceTitle "playchess.com"]
[Source "ChessBase"]
[SourceQuality "1"]
[TimeControl "40/5400+30:1800+30"]

1. e4 {[%emt 0:00:00]} c6 {[%emt 0:00:22]} 2. Nc3 {[%emt 0:00:00]} d5 {[%emt 0:00:26]} 3. Nf3 {[%emt 0:00:00]} dxe4 {[%emt 0:02:18]} 4. Nxe4 {[%emt 0:00:00]} Nf6 {[%emt 0:00:54]} 5. Qe2 {[%emt 0:02:01]} Nxe4 {[%emt 0:02:19]} 6. Qxe4 {[%emt 0:00:08]} Qd5 {[%emt 0:04:15]} 7. Qf4 {[%emt 0:02:36]} Qf5 {[%emt 0:05:40]} 8. Qe3 {[%emt 0:00:41]} e6 {[%emt 0:01:20]} 9. Bd3 {[%emt 0:04:05]} Qf6 {[%emt 0:02:21]} 10. Rb1 {[%emt 0:04:44]} Bd6 {[%emt 0:01:03]} 11. b3 {[%emt 0:00:10]} Bf4 {[%emt 0:06:24]} 12. Qe4 {[%emt 0:09:33]} Bh6 {[%emt 0:02:08]} 13. Bb2 {[%emt 0:04:40]} Qe7 $16 {[%emt 0:01:56]} 14. g4 {[%emt 0:10:57]} Nd7 {[%emt 0:05:18]} 15. g5 {[%emt 0:05:15]} Bxg5 {[%emt 0:03:45]} 16. Nxg5 {[%emt 0:14:33]} Qxg5 {[%emt 0:01:35]} 17. h4 {[%emt 0:00:10]} Qh6 {[%emt 0:00:56]} 18. Qg4 {[%emt 0:07:25]} e5 {[%emt 0:16:40]} 19. Qe4 {[%emt 0:03:05]} O-O {[%emt 0:00:42]} 20. Qe3 {[%emt 0:11:07]} Qf4 {[%emt 0:01:45]} 21. Ke2 {[%emt 0:01:41]} Re8 {[%emt 0:12:25]} 22. Rbg1 {[%emt 0:00:41]} Nf6 {[%emt 0:01:26]} 23. Qxf4 {[%emt 0:04:32]} exf4+ {[%emt 0:00:18]} 24. Kf3 {[%emt 0:00:04]} h5 {[%emt 0:06:41]} 25. Bxf6 {[%emt 0:01:26]} Bg4+ {[%emt 0:00:32]} 26. Kxf4 {[%emt 0:00:06]} gxf6 {[%emt 0:01:12]} 27. f3 {[%emt 0:00:13]} 1-0

[Event "XIII Figueira da Foz Open 2019"]
[Site "Figueira da Foz"]
[Date "2019.10.29"]
[Round "3.17"]
[White "Dong, Fabio"]
[Black "Gama, Joao Goncalo Cerejei"]
[Result "1/2-1/2"]
[ECO "A39"]
[WhiteElo "1410"]
[BlackElo "1712"]
[Annotator "NA RC"]
[PlyCount "124"]
[EventDate "2019.10.27"]
[EventType "swiss"]
[EventCountry "POR"]
[SourceTitle "playchess.com"]
[Source "ChessBase"]
[SourceQuality "1"]
[TimeControl "40/5400+30:1800+30"]

1. c4 {[%emt 0:00:00]} c5 {[%emt 0:00:00]} 2. Nc3 {[%emt 0:00:00]} Nc6 {[%emt 0:00:00]} 3. g3 {[%emt 0:00:01]} g6 {[%emt 0:00:00]} 4. Bg2 {[%emt 0:00:16]} Bg7 {[%emt 0:00:00]} 5. Nf3 {[%emt 0:00:13]} Nf6 {[%emt 0:00:00]} 6. O-O {[%emt 0:00:24]} O-O {[%emt 0:00:06]} 7. d4 {[%emt 0:00:28]} cxd4 {[%emt 0:07:35]} 8. Nxd4 {[%emt 0:00:26]} a6 {[%emt 0:01:34]} 9. h3 {[%emt 0:08:20]} Qc7 {[%emt 0:05:19]} 10. Be3 {[%emt 0:05:42]} d6 {[%emt 0:04:04]} 11. Nd5 {[%emt 0:05:13]} Nxd5 {[%emt 0:06:23]} 12. cxd5 {[%emt 0:01:29]} Nxd4 {[%emt 0:03:52]} 13. Bxd4 {[%emt 0:00:17]} b5 {[%emt 0:00:04]} 14. Bxg7 {[%emt 0:01:28]} Kxg7 {[%emt 0:00:04]} 15. Qd4+ {[%emt 0:00:33]} f6 {[%emt 0:00:46]} 16. Rac1 {[%emt 0:04:01]} Qa5 {[%emt 0:02:43]} 17. a3 {[%emt 0:02:23]} Bd7 {[%emt 0:03:44]} 18. Rc3 {[%emt 0:03:38]} Rac8 {[%emt 0:04:41]} 19. Rfc1 {[%emt 0:01:59]} Rxc3 {[%emt 0:16:16]} 20. Qxc3 {[%emt 0:04:08]} Qxc3 {[%emt 0:09:14]} 21. Rxc3 {[%emt 0:00:15]} Rc8 {[%emt 0:00:01]} 22. Rxc8 {[%emt 0:00:38]} Bxc8 {[%emt 0:00:03]} 23. h4 {[%emt 0:00:33]} a5 {[%emt 0:00:21]} 24. e4 {[%emt 0:03:46]} b4 {[%emt 0:05:01]} 25. axb4 {[%emt 0:00:09]} axb4 {[%emt 0:00:10]} 26. Kf1 {[%emt 0:00:18]} Ba6+ {[%emt 0:00:32]} 27. Ke1 {[%emt 0:00:32]} g5 {[%emt 0:02:33]} 28. hxg5 {[%emt 0:02:12]} fxg5 {[%emt 0:00:04]} 29. f3 {[%emt 0:06:45]} h5 {[%emt 0:01:45]} 30. Kd2 {[%emt 0:01:55]} Kf6 {[%emt 0:08:58]} 31. Bh3 {[%emt 0:01:50]} Ke5 {[%emt 0:09:07]} 32. Ke3 {[%emt 0:01:03]} g4 {[%emt 0:01:14]} 33. fxg4 {[%emt 0:00:23]} Bc8 {[%emt 0:00:11]} 34. Bg2 {[%emt 0:04:13]} Bxg4 {[%emt 0:02:52]} 35. Bh1 {[%emt 0:01:52]} Bd1 {[%emt 0:02:01]} 36. Bg2 {[%emt 0:00:30]} Bg4 {[%emt 0:00:44]} 37. Bh1 {[%emt 0:00:21]} e6 {[%emt 0:00:06]} 38. dxe6 {[%emt 0:00:51]} Bxe6 {[%emt 0:00:05]} 39. Bf3 {[%emt 0:01:24]} Bg4 {[%emt 0:02:56]} 40. Bg2 {[%emt 0:00:00]} b3 {[%emt 0:00:00]} 41. Bf1 {[%emt 0:05:10]} Bd1 {[%emt 0:04:28]} 42. Bg2 {[%emt 0:00:37]} Bg4 {[%emt 0:02:00]} 43. Bf1 {[%emt 0:01:06]} Be6 {[%emt 0:00:52]} 44. Bg2 {[%emt 0:00:33]} d5 {[%emt 0:06:33]} 45. exd5 {[%emt 0:00:18]} Bxd5 {[%emt 0:00:04]} 46. Bxd5 {[%emt 0:00:16]} Kxd5 {[%emt 0:00:03]} 47. Kd3 {[%emt 0:00:12]} Ke5 {[%emt 0:00:47]} 48. Ke3 {[%emt 0:01:18]} Kf5 {[%emt 0:03:47]} 49. Kf3 {[%emt 0:00:10]} Kg5 {[%emt 0:01:00]} 50. Kf2 {[%emt 0:01:23]} Kg4 {[%emt 0:01:08]} 51. Kg2 {[%emt 0:00:14]} Kg5 {[%emt 0:00:33]} 52. Kh3 {[%emt 0:00:15]} Kf5 {[%emt 0:05:33]} 53. Kh4 {[%emt 0:01:04]} Ke4 {[%emt 0:03:35]} 54. Kxh5 {[%emt 0:00:12]} Kd3 {[%emt 0:00:02]} 55. g4 {[%emt 0:00:09]} Kc2 {[%emt 0:00:01]} 56. g5 {[%emt 0:00:06]} Kxb2 {[%emt 0:00:04]} 57. g6 {[%emt 0:00:04]} Kc3 {[%emt 0:00:28]} 58. g7 {[%emt 0:00:08]} b2 {[%emt 0:00:03]} 59. g8=Q {[%emt 0:00:07]} b1=Q {[%emt 0:00:13]} 60. Qc8+ {[%emt 0:00:18]} Kd2 {[%emt 0:00:44]} 61. Qd7+ {[%emt 0:00:13]} Qd3 {[%emt 0:00:06]} 62. Qxd3+ {[%emt 0:00:06]} Kxd3 {[%emt 0:00:01]} 1/2-1/2

[Event "XIII Figueira da Foz Open 2019"]
[Site "Figueira da Foz"]
[Date "2019.10.29"]
[Round "3.18"]
[White "Rato, Eduardo"]
[Black "Babo, Miguel"]
[Result "0-1"]
[ECO "A04"]
[WhiteElo "1693"]
[BlackElo "1827"]
[Annotator "NA RC"]
[PlyCount "68"]
[EventDate "2019.10.27"]
[EventType "swiss"]
[EventCountry "POR"]
[SourceTitle "playchess.com"]
[Source "ChessBase"]
[SourceQuality "1"]
[TimeControl "40/5400+30:1800+30"]

1. Nf3 {[%emt 0:00:26]} Nc6 {[%emt 0:01:45]} 2. d4 {[%emt 0:00:22]} e6 {[%emt 0:02:04]} 3. e4 {[%emt 0:00:16]} b6 {[%emt 0:01:25]} 4. Bd3 {[%emt 0:01:28]} Bb7 {[%emt 0:05:10]} 5. O-O {[%emt 0:01:19]} Nb4 {[%emt 0:02:36]} 6. c4 {[%emt 0:01:27]} Nxd3 {[%emt 0:00:24]} 7. Qxd3 {[%emt 0:00:16]} d6 {[%emt 0:03:07]} 8. Nc3 {[%emt 0:01:56]} Be7 {[%emt 0:02:26]} 9. Be3 {[%emt 0:01:14]} a6 {[%emt 0:06:04]} 10. a4 {[%emt 0:01:11]} Nf6 {[%emt 0:03:01]} 11. h3 {[%emt 0:01:12]} O-O {[%emt 0:00:47]} 12. Nd2 {[%emt 0:03:28]} Nd7 {[%emt 0:02:24]} 13. f4 {[%emt 0:02:27]} f5 {[%emt 0:03:12]} 14. d5 $11 {[%emt 0:04:54]} exd5 {[%emt 0:05:27]} 15. exd5 {[%emt 0:01:35]} Qe8 {[%emt 0:03:45]} 16. Rae1 {[%emt 0:00:50]} Qf7 {[%emt 0:00:49]} 17. Nb3 {[%emt 0:04:42]} Nc5 {[%emt 0:05:36]} 18. Bxc5 {[%emt 0:09:39]} dxc5 {[%emt 0:02:49]} 19. Re6 {[%emt 0:00:53]} Bd6 {[%emt 0:03:43]} 20. Nd2 {[%emt 0:01:27]} Rad8 {[%emt 0:05:00]} 21. g3 {[%emt 0:04:28]} Bxf4 {[%emt 0:03:24]} 22. Rxf4 {[%emt 0:01:30]} Qxe6 {[%emt 0:00:13]} 23. Nf3 {[%emt 0:08:24]} Qf6 {[%emt 0:02:14]} 24. Nd1 {[%emt 0:00:33]} g5 {[%emt 0:01:17]} 25. Ne3 {[%emt 0:04:29]} gxf4 {[%emt 0:00:41]} 26. gxf4 {[%emt 0:00:09]} Rf7 {[%emt 0:02:34]} 27. Ng5 {[%emt 0:00:27]} Qg6 {[%emt 0:04:13]} 28. Kh2 {[%emt 0:00:09]} Rf6 {[%emt 0:01:20]} 29. Nf3 {[%emt 0:01:59]} Qh6 {[%emt 0:03:11]} 30. Ng5 {[%emt 0:00:21]} Qh4 {[%emt 0:02:05]} 31. Ng2 {[%emt 0:00:29]} Qf2 {[%emt 0:00:35]} 32. Qd1 {[%emt 0:00:16]} Rh6 {[%emt 0:01:27]} 33. Qd3 {[%emt 0:01:08]} Bc8 {[%emt 0:01:22]} 34. Qc3 {[%emt 0:00:39]} Re8 {[%emt 0:01:32]} 0-1

[Event "XIII Figueira da Foz Open 2019"]
[Site "Figueira da Foz"]
[Date "2019.10.29"]
[Round "3.19"]
[White "Goncalves, Lucas Jordao"]
[Black "Barros Gutierrez, Angel Luis"]
[Result "1-0"]
[ECO "B27"]
[WhiteElo "1447"]
[BlackElo "2038"]
[Annotator "NA RC"]
[PlyCount "104"]
[EventDate "2019.10.27"]
[EventType "swiss"]
[EventCountry "POR"]
[SourceTitle "playchess.com"]
[Source "ChessBase"]
[SourceQuality "1"]
[TimeControl "40/5400+30:1800+30"]

1. e4 c5 {[%emt 0:00:00]} 2. Nf3 {[%emt 0:00:00]} g6 {[%emt 0:00:13]} 3. d4 {[%emt 0:00:00]} e6 {[%emt 0:01:12]} 4. Nc3 {[%emt 0:00:16]} a6 {[%emt 0:00:30]} 5. Be3 {[%emt 0:00:22]} d5 {[%emt 0:00:30]} 6. exd5 {[%emt 0:00:00]} exd5 {[%emt 0:01:11]} 7. dxc5 {[%emt 0:00:24]} Nf6 {[%emt 0:00:51]} 8. Qd2 {[%emt 0:01:56]} Nc6 {[%emt 0:01:26]} 9. O-O-O {[%emt 0:02:59]} Be6 {[%emt 0:01:45]} 10. Nd4 {[%emt 0:00:30]} Qa5 {[%emt 0:02:29]} 11. Nb3 {[%emt 0:02:47]} Qc7 {[%emt 0:00:36]} 12. Be2 {[%emt 0:00:30]} Bg7 {[%emt 0:00:30]} 13. Bf3 {[%emt 0:03:14]} Rd8 14. Bf4 {[%emt 0:02:58]} Qc8 {[%emt 0:02:42]} 15. Na4 {[%emt 0:00:30]} Ne4 {[%emt 0:00:30]} 16. Qe3 {[%emt 0:00:30]} Nb4 {[%emt 0:00:30]} 17. a3 {[%emt 0:00:30]} Qc6 {[%emt 0:00:30]} 18. axb4 {[%emt 0:00:30]} Qxa4 {[%emt 0:00:30]} 19. Bxe4 {[%emt 0:00:30]} Qa2 {[%emt 0:00:30]} 20. Bf3 {[%emt 0:00:30]} Qxb2+ {[%emt 0:00:30]} 21. Kd2 {[%emt 0:00:30]} d4 {[%emt 0:00:30]} 22. Qd3 {[%emt 0:00:30]} O-O {[%emt 0:00:30]} 23. Rb1 {[%emt 0:00:30]} Qa3 {[%emt 0:00:30]} 24. Kd1 {[%emt 0:00:30]} Qxb4 {[%emt 0:00:30]} 25. Bd2 {[%emt 0:00:30]} Qa4 {[%emt 0:14:44]} 26. Bxb7 {[%emt 0:16:06]} Bc4 {[%emt 0:00:30]} 27. Qf3 {[%emt 0:00:30]} d3 {[%emt 0:00:30]} 28. Be4 {[%emt 0:00:30]} Qa2 {[%emt 0:00:30]} 29. Rc1 {[%emt 0:00:30]} Rfe8 {[%emt 0:00:30]} 30. c6 {[%emt 0:00:30]} dxc2+ {[%emt 0:00:30]} 31. Bxc2 {[%emt 0:00:30]} Be2+ {[%emt 0:00:30]} 32. Qxe2 {[%emt 0:00:30]} Rxe2 {[%emt 0:00:30]} 33. Kxe2 {[%emt 0:00:30]} Qa4 {[%emt 0:00:30]} 34. Nc5 {[%emt 0:00:30]} Qxc6 {[%emt 0:00:30]} 35. Be4 {[%emt 0:00:30]} Qb5+ {[%emt 0:00:30]} 36. Bd3 {[%emt 0:00:30]} Re8+ {[%emt 0:00:30]} 37. Be3 {[%emt 0:00:30]} Qb4 {[%emt 0:00:30]} 38. Nxa6 {[%emt 0:00:30]} Qg4+ {[%emt 0:00:30]} 39. Kf1 {[%emt 0:00:30]} Rd8 {[%emt 0:35:39]} 40. h3 {[%emt 0:33:39]} Qa4 {[%emt 0:00:00]} 41. Nc5 {[%emt 0:30:16]} Qa3 {[%emt 0:01:54]} 42. Ke2 {[%emt 0:00:17]} Bf8 {[%emt 0:02:52]} 43. Rhd1 {[%emt 0:02:06]} Rc8 {[%emt 0:06:04]} 44. Ne4 {[%emt 0:00:30]} Qb2+ {[%emt 0:05:27]} 45. Kf3 {[%emt 0:01:07]} Rxc1 {[%emt 0:00:30]} 46. Rxc1 {[%emt 0:00:08]} f5 {[%emt 0:01:07]} 47. Ng5 {[%emt 0:02:40]} Qb7+ {[%emt 0:01:36]} 48. Ke2 {[%emt 0:03:32]} Qe7 {[%emt 0:11:50]} 49. f4 $18 {[%emt 0:00:30]} h5 {[%emt 0:00:30]} 50. Ne6 {[%emt 0:00:30]} Qb7 {[%emt 0:00:30]} 51. Kf2 {[%emt 0:00:30]} Bd6 {[%emt 0:00:30]} 52. Rc2 {[%emt 0:05:40]} h4 {[%emt 0:08:13]} 1-0